fUST/lending_fUST_20250628
["ID","MTS","AMOUNT","RATE_DAILY","PERIOD"]
[368211431,1751061044399,-460.0,0.00019726,2]
[368211433,1751061044409,-460.0,0.00019726,2]
[368211435,1751061044418,-460.0,0.00019726,2]
[368211437,1751061044427,-460.0,0.00019726,2]
[368211439,1751061044437,-460.0,0.00019726,2]
[368211441,1751061044446,-515.32,0.00019726,2]
[368211443,1751061044455,-838.52,0.00019726,2]
[368211445,1751061044464,-460.0,0.00019726,2]
[368211447,1751061044473,-460.0,0.00019726,2]
[368211449,1751061044482,-460.0,0.00019726,2]
[368211451,1751061044492,-460.0,0.00019726,2]
[368211453,1751061044501,-460.0,0.00019726,2]
[368211455,1751061044510,-460.0,0.00019726,2]
[368211457,1751061044519,-460.0,0.00019726,2]
[368211459,1751061044528,-460.0,0.00019726,2]
[368211461,1751061044538,-460.0,0.00019726,2]
[368211463,1751061044547,-496.4,0.00019726,2]
[368211465,1751061044556,-417.82589537,0.00019726,2]
[368211467,1751061044565,-460.0,0.00019726,2]
[368211469,1751061044574,-460.0,0.00019726,2]
[368211471,1751061044583,-380.19,0.00019726,2]
[368211473,1751061044592,-460.0,0.00019726,2]
[368211475,1751061044601,-460.0,0.00019726,2]
[368211477,1751061044611,-460.0,0.00019726,2]
[368211479,1751061044619,-460.0,0.00019726,2]
[368211481,1751061044629,-460.0,0.00019726,2]
[368211483,1751061044638,-460.0,0.00019726,2]
[368211485,1751061044649,-460.0,0.00019726,2]
[368211487,1751061044658,-460.0,0.00019726,2]
[368211489,1751061044667,-460.0,0.00019726,2]
[368211491,1751061044677,-460.0,0.00019726,2]
[368211493,1751061044687,-460.0,0.00019726,2]
[368211495,1751061044696,-460.0,0.00019726,2]
[368211497,1751061044705,-487.52,0.00019726,2]
[368211499,1751061044714,-460.0,0.00019726,2]
[368211501,1751061044724,-460.0,0.00019726,2]
[368211503,1751061044733,-183.32,0.00019726,2]
[368211505,1751061044743,-620.19,0.00019726,2]
[368211507,1751061044752,-460.0,0.00019726,2]
[368211509,1751061044762,-565.41,0.00019726,2]
[368211510,1751061044771,-635.28,0.00019726,2]
[368211512,1751061044780,-460.0,0.00019726,2]
[368211514,1751061044790,-460.0,0.00019726,2]
[368211516,1751061044799,-421.82,0.00019726,2]
[368211518,1751061044808,-460.0,0.00019726,2]
[368211520,1751061044818,-2824.59,0.00019726,2]
[368211522,1751061044828,-597.55,0.00019726,2]
[368211524,1751061044837,-460.0,0.00019726,2]
[368211526,1751061044846,-798.49,0.00019726,2]
[368211528,1751061044855,-3357.7,0.00019726,2]
[368211530,1751061044864,-761.7,0.00019726,2]
[368211532,1751061044876,-460.0,0.00019726,2]
[368211533,1751061044885,-487.85,0.00019726,2]
[368211534,1751061044894,-460.0,0.00019726,2]
[368211535,1751061044903,-986.93,0.00019726,2]
[368211536,1751061044912,-679.08,0.00019726,2]
[368211537,1751061044922,-244.05,0.00019726,2]
[368211538,1751061044931,-254.26203425,0.00019726,2]
[368211539,1751061044940,-1181.38,0.00019726,2]
[368211540,1751061044951,-460.0,0.00019726,2]
[368211541,1751061044961,-2968.79,0.00019726,2]
[368211542,1751061044970,-318.66381283,0.00019726,2]
[368211543,1751061044980,-460.0,0.00019726,2]
[368211544,1751061044990,-460.0,0.00019726,2]
[368211545,1751061045000,-497.76,0.00019726,2]
[368211546,1751061045010,-544.9,0.00019726,2]
[368211547,1751061045020,-3495.66,0.00019726,2]
[368211548,1751061045030,-460.0,0.00019726,2]
[368211549,1751061045040,-2798.55,0.00019726,2]
[368211551,1751061045050,-629.97,0.00019726,2]
[368211553,1751061045060,-460.0,0.00019726,2]
[368211555,1751061045070,-559.89,0.00019726,2]
[368211557,1751061045079,-460.0,0.00019726,2]
[368211559,1751061045088,-624.94,0.00019726,2]
[368211561,1751061045097,-460.0,0.00019726,2]
[368211563,1751061045106,-1873.85,0.00019726,2]
[368211565,1751061045115,-460.0,0.00019726,2]
[368211567,1751061045125,-1420.77,0.00019726,2]
[368211569,1751061045134,-1920.28,0.00019726,2]
[368211571,1751061045143,-460.0,0.00019726,2]
[368211573,1751061045152,-460.0,0.00019726,2]
[368211575,1751061045161,-460.0,0.00019726,2]
[368211577,1751061045170,-460.0,0.00019726,2]
[368211579,1751061045180,-218.69,0.00019726,2]
[368211581,1751061045189,-2056.81,0.00019726,2]
[368211583,1751061045199,-460.0,0.00019726,2]
[368211585,1751061045208,-460.0,0.00019726,2]
[368211587,1751061045217,-585.66,0.00019726,2]
[368211589,1751061045226,-401.29482588,0.00019726,2]
[368211590,1751061045235,-840.29,0.00019726,2]
[368211592,1751061045244,-460.0,0.00019726,2]
[368211594,1751061045254,-5277.68,0.00019726,2]
[368211596,1751061045262,-4923.21,0.00019726,2]
[368211598,1751061045271,-739.24,0.00019726,2]
[368211600,1751061045281,-460.0,0.00019726,2]
[368211602,1751061045290,-727.92,0.00019726,2]
[368211604,1751061045300,-460.0,0.00019726,2]
[368211605,1751061045310,-460.0,0.00019726,2]
[368211616,1751061045451,-460.0,0.00019726,2]
[368211617,1751061045461,-1514.85,0.00019726,2]
[368211618,1751061045470,-460.0,0.00019726,2]
[368211619,1751061045480,-1211.92,0.00019726,2]
[368211620,1751061045489,-674.28,0.00019726,2]
[368211621,1751061045498,-669.06,0.00019726,2]
[368211622,1751061045507,-460.0,0.00019726,2]
[368211623,1751061045516,-460.0,0.00019726,2]
[368211624,1751061045528,-460.0,0.00019726,2]
[368211625,1751061045537,-460.0,0.00019726,2]
[368211626,1751061045546,-1456.98,0.00019726,2]
[368211627,1751061045556,-460.0,0.00019726,2]
[368211628,1751061045565,-460.0,0.00019726,2]
[368211629,1751061045575,-1384.05,0.00019726,2]
[368211630,1751061045584,-707.41,0.00019726,2]
[368211631,1751061045594,-460.0,0.00019726,2]
[368211632,1751061045603,-460.0,0.00019726,2]
[368211633,1751061045612,-590.69,0.00019726,2]
[368211634,1751061045622,-460.0,0.00019726,2]
[368211635,1751061045631,-542.12,0.00019726,2]
[368211636,1751061045641,-460.0,0.00019726,2]
[368211637,1751061045652,-1928.85,0.00019726,2]
[368211638,1751061045662,-940.13,0.00019726,2]
[368211639,1751061045671,-2564.36,0.00019726,2]
[368211640,1751061045682,-558.51,0.00019726,2]
[368211641,1751061045692,-692.09,0.00019726,2]
[368211642,1751061045702,-460.0,0.00019726,2]
[368211643,1751061045714,-460.0,0.00019726,2]
[368211644,1751061045724,-460.0,0.00019726,2]
[368211645,1751061045734,-161.39585277,0.00019726,2]
[368211646,1751061045744,-703.36,0.00019726,2]
[368211647,1751061045754,-460.0,0.00019726,2]
[368211648,1751061045763,-460.0,0.00019726,2]
[368211649,1751061045773,-989.89,0.00019726,2]
[368211650,1751061045783,-460.0,0.00019726,2]
[368211651,1751061045795,-4047.67,0.00019726,2]
[368211652,1751061045804,-460.0,0.00019726,2]
[368211653,1751061045815,-460.0,0.00019726,2]
[368211654,1751061045826,-460.0,0.00019726,2]
[368211655,1751061045836,-460.0,0.00019726,2]
[368211656,1751061045845,-1027.21,0.00019726,2]
[368211657,1751061045855,-735.72,0.00019726,2]
[368211658,1751061045864,-460.0,0.00019726,2]
[368211659,1751061045875,-460.0,0.00019726,2]
[368211660,1751061045885,-460.0,0.00019726,2]
[368211661,1751061045894,-460.0,0.00019726,2]
[368211662,1751061045903,-4800.46,0.00019726,2]
[368211663,1751061045913,-695.51,0.00019726,2]
[368211664,1751061045923,-460.0,0.00019726,2]
[368211666,1751061045933,-2134.26,0.00019726,2]
[368211668,1751061045942,-227.0,0.00019758,2]
[368211670,1751061045954,-500.0,0.00019816,2]
[368211672,1751061045964,-500.0,0.00019826,2]
[368211674,1751061045973,-200.89246766,0.00019826,2]
[368211676,1751061045983,-500.0,0.00019826,2]
[368211678,1751061045992,-833.87781239,0.00019831,2]
[368211680,1751061046002,-420.0,0.00019869,2]
[368211682,1751061046011,-6253.67473752,0.000199,2]
[368211684,1751061046020,-460.0,0.0002,2]
[368211686,1751061046029,-460.0,0.0002,2]
[368211688,1751061046039,-460.0,0.0002,2]
[368211690,1751061046049,-460.0,0.0002,2]
[368211692,1751061046059,-460.0,0.0002,2]
[368211694,1751061046068,-460.0,0.0002,2]
[368211696,1751061046078,-460.0,0.0002,2]
[368211698,1751061046087,-300.0,0.0002,2]
[368211700,1751061046096,-460.0,0.0002,2]
[368211702,1751061046107,-460.0,0.0002,2]
[368211704,1751061046116,-539.60067752,0.0002,2]
[368211706,1751061046125,-460.0,0.0002,2]
[368211708,1751061046134,-460.0,0.0002,2]
[368211710,1751061046143,-460.0,0.0002,2]
[368211712,1751061046153,-460.0,0.0002,2]
[368211714,1751061046162,-460.0,0.0002,2]
[368211716,1751061046171,-838.52,0.0002,2]
[368211718,1751061046180,-460.0,0.0002,2]
[368211720,1751061046189,-460.0,0.0002,2]
[368211722,1751061046198,-460.0,0.0002,2]
[368211723,1751061046208,-291.23006975,0.0002,2]
[368211725,1751061046217,-460.0,0.0002,2]
[368211727,1751061046226,-460.0,0.0002,2]
[368211729,1751061046236,-460.0,0.0002,2]
[368211731,1751061046245,-496.4,0.0002,2]
[368211733,1751061046254,-460.0,0.0002,2]
[368211735,1751061046264,-460.0,0.0002,2]
[368211736,1751061046273,-460.0,0.0002,2]
[368211737,1751061046282,-460.0,0.0002,2]
[368211738,1751061046291,-460.0,0.0002,2]
[368211739,1751061046301,-578.01,0.0002,2]
[368211740,1751061046310,-460.0,0.0002,2]
[368211741,1751061046319,-460.0,0.0002,2]
[368211742,1751061046329,-367.42878218,0.0002,2]
[368211743,1751061046338,-360.87957347,0.0002,2]
[368211744,1751061046347,-460.0,0.0002,2]
[368211745,1751061046357,-460.0,0.0002,2]
[368211746,1751061046367,-487.52,0.0002,2]
[368211747,1751061046376,-460.0,0.0002,2]
[368211748,1751061046385,-460.0,0.0002,2]
[368211749,1751061046394,-620.19,0.0002,2]
[368211750,1751061046404,-460.0,0.0002,2]
[368211751,1751061046413,-565.41,0.0002,2]
[368211752,1751061046423,-635.28,0.0002,2]
[368211753,1751061046432,-460.0,0.0002,2]
[368211754,1751061046441,-460.0,0.0002,2]
[368211755,1751061046450,-2824.59,0.0002,2]
[368211756,1751061046459,-597.55,0.0002,2]
[368211757,1751061046468,-798.49,0.0002,2]
[368211758,1751061046478,-3357.7,0.0002,2]
[368211759,1751061046487,-761.7,0.0002,2]
[368211760,1751061046496,-460.0,0.0002,2]
[368211761,1751061046505,-487.85,0.0002,2]
[368211762,1751061046515,-460.0,0.0002,2]
[368211763,1751061046524,-986.93,0.0002,2]
[368211764,1751061046533,-679.08,0.0002,2]
[368211765,1751061046543,-1181.38,0.0002,2]
[368211766,1751061046552,-460.0,0.0002,2]
[368211767,1751061046561,-2968.79,0.0002,2]
[368211768,1751061046570,-460.0,0.0002,2]
[368211769,1751061046580,-544.9,0.0002,2]
[368211770,1751061046589,-497.76,0.0002,2]
[368211771,1751061046598,-3495.66,0.0002,2]
[368211772,1751061046607,-460.0,0.0002,2]
[368211773,1751061046616,-2798.55,0.0002,2]
[368211774,1751061046625,-629.97,0.0002,2]
[368211775,1751061046634,-460.0,0.0002,2]
[368211776,1751061046644,-559.89,0.0002,2]
[368211777,1751061046654,-460.0,0.0002,2]
[368211778,1751061046663,-624.94,0.0002,2]
[368211779,1751061046672,-501.48619889,0.0002,2]
[368211780,1751061046682,-1873.85,0.0002,2]
[368211781,1751061046691,-500.0,0.0002,2]
[368211782,1751061046700,-1420.77,0.0002,2]
[368211783,1751061046710,-1920.28,0.0002,2]
[368211784,1751061046719,-375.743074,0.0002,2]
[368211785,1751061046728,-460.0,0.0002,2]
[368211786,1751061046737,-460.0,0.0002,2]
[368211787,1751061046751,-2056.81,0.0002,2]
[368211788,1751061046761,-495.8429992,0.0002,2]
[368211789,1751061046770,-460.0,0.0002,2]
[368211790,1751061046780,-585.66,0.0002,2]
[368211791,1751061046789,-840.29,0.0002,2]
[368211792,1751061046798,-327.58500441,0.0002,2]
[368211793,1751061046807,-5277.68,0.0002,2]
[368211794,1751061046817,-4923.21,0.0002,2]
[368211795,1751061046826,-739.24,0.0002,2]
[368211796,1751061046835,-500.0,0.0002,2]
[368211797,1751061046844,-727.92,0.0002,2]
[368211798,1751061046853,-460.0,0.0002,2]
[368211799,1751061046862,-460.0,0.0002,2]
[368211800,1751061046872,-460.0,0.0002,2]
[368211801,1751061046884,-1514.85,0.0002,2]
[368211802,1751061046894,-1211.92,0.0002,2]
[368211803,1751061046903,-674.28,0.0002,2]
[368211804,1751061046912,-669.06,0.0002,2]
[368211805,1751061046925,-460.0,0.0002,2]
[368211806,1751061046936,-274.29290109,0.0002,2]
[368211807,1751061046946,-460.0,0.0002,2]
[368211808,1751061046956,-460.0,0.0002,2]
[368211809,1751061046965,-1456.98,0.0002,2]
[368211810,1751061046975,-460.0,0.0002,2]
[368211811,1751061046984,-1384.05,0.0002,2]
[368211812,1751061046995,-707.41,0.0002,2]
[368211813,1751061047004,-460.0,0.0002,2]
[368211814,1751061047015,-460.0,0.0002,2]
[368211815,1751061047024,-590.69,0.0002,2]
[368211816,1751061047034,-460.0,0.0002,2]
[368211817,1751061047043,-542.12,0.0002,2]
[368211818,1751061047052,-460.0,0.0002,2]
[368211819,1751061047062,-1928.85,0.0002,2]
[368211820,1751061047071,-940.13,0.0002,2]
[368211821,1751061047080,-2564.36,0.0002,2]
[368211822,1751061047090,-558.51,0.0002,2]
[368211823,1751061047099,-692.09,0.0002,2]
[368211824,1751061047108,-325.7,0.0002,2]
[368211825,1751061047118,-460.0,0.0002,2]
[368211826,1751061047128,-703.36,0.0002,2]
[368211827,1751061047138,-460.0,0.0002,2]
[368211828,1751061047148,-989.89,0.0002,2]
[368211829,1751061047157,-460.0,0.0002,2]
[368211830,1751061047167,-460.0,0.0002,2]
[368211831,1751061047177,-4047.67,0.0002,2]
[368211832,1751061047186,-460.0,0.0002,2]
[368211833,1751061047197,-523.93088361,0.0002,2]
[368211834,1751061047207,-162.45,0.0002,2]
[368211835,1751061047216,-460.0,0.0002,2]
[368211836,1751061047225,-460.0,0.0002,2]
[368211837,1751061047235,-1027.21,0.0002,2]
[368211838,1751061047244,-735.72,0.0002,2]
[368211839,1751061047254,-460.0,0.0002,2]
[368211840,1751061047264,-460.0,0.0002,2]
[368211841,1751061047273,-460.0,0.0002,2]
[368211842,1751061047282,-4800.46,0.0002,2]
[368211843,1751061047291,-695.51,0.0002,2]
[368211844,1751061047300,-460.0,0.0002,2]
[368211845,1751061047310,-2134.26,0.0002,2]
[368211846,1751061047322,-160.0,0.00020025,2]
[368211847,1751061047332,-847.04181546,0.00020025,2]
[368211848,1751061047341,-160.0,0.00020025,2]
[368211849,1751061047351,-160.0,0.00020025,2]
[368211850,1751061047360,-230.26210603,0.00020025,2]
[368211851,1751061047369,-12562.41216491,0.00020025,2]
[368211852,1751061047378,-160.0,0.00020025,2]
[368211853,1751061047388,-836.98798914,0.00020025,2]
[368211854,1751061047397,-160.0,0.00020025,2]
[368211855,1751061047407,-160.0,0.00020025,2]
[368211856,1751061047416,-214.91804724,0.00020025,2]
[368211857,1751061047425,-160.0,0.00020025,2]
[368211858,1751061047434,-213.75309343,0.00020025,2]
[368211859,1751061047443,-160.0,0.00020027,2]
[368211860,1751061047452,-160.0,0.00020027,2]
[368211861,1751061047462,-889.63891331,0.00020061,2]
[368211862,1751061047471,-6253.67473741,0.00020141,2]
[368211863,1751061047480,-454.11482699,0.00020158,2]
[368211864,1751061047490,-499.304038,0.00020187,2]
[368211865,1751061047499,-500.0,0.00020195,2]
[368211866,1751061047508,-5000.0,0.00020195,2]
[368211867,1751061047517,-500.0,0.00020195,2]
[368211868,1751061047526,-500.0,0.00020195,2]
[368211869,1751061047536,-500.0,0.00020195,2]
[368211870,1751061047546,-500.0,0.00020195,2]
[368211871,1751061047555,-500.0,0.00020195,2]
[368211872,1751061047564,-500.0,0.00020195,2]
[368211873,1751061047573,-381.33984163,0.00020195,2]
[368211874,1751061047582,-207.4,0.00020195,2]
[368211875,1751061047591,-1000.0,0.00020244,2]
[368211876,1751061047600,-151.0,0.00020273,2]
[368211877,1751061047609,-460.0,0.00020273,2]
[368211878,1751061047619,-460.0,0.00020273,2]
[368211879,1751061047628,-460.0,0.00020273,2]
[368211880,1751061047637,-460.0,0.00020273,2]
[368211881,1751061047646,-460.0,0.00020273,2]
[368211882,1751061047657,-336.14549433,0.00020273,2]
[368211883,1751061047667,-460.0,0.00020273,2]
[368211884,1751061047675,-460.0,0.00020273,2]
[368211885,1751061047685,-460.0,0.00020273,2]
[368211886,1751061047695,-460.0,0.00020273,2]
[368211887,1751061047704,-460.0,0.00020273,2]
[368211888,1751061047714,-460.0,0.00020273,2]
[368211889,1751061047723,-211.71794713,0.00020273,2]
[368211890,1751061047732,-838.52,0.00020273,2]
[368211891,1751061047742,-460.0,0.00020273,2]
[368211892,1751061047752,-460.0,0.00020273,2]
[368211893,1751061047761,-460.0,0.00020273,2]
[368211894,1751061047770,-245.38,0.00020273,2]
[368211895,1751061047779,-460.0,0.00020273,2]
[368211896,1751061047789,-460.0,0.00020273,2]
[368211897,1751061047799,-496.4,0.00020273,2]
[368211898,1751061047808,-460.0,0.00020273,2]
[368211899,1751061047817,-460.0,0.00020273,2]
[368211900,1751061047826,-460.0,0.00020273,2]
[368211901,1751061047835,-460.0,0.00020273,2]
[368211902,1751061047844,-460.0,0.00020273,2]
[368211903,1751061047854,-460.0,0.00020273,2]
[368211904,1751061047863,-460.0,0.00020273,2]
[368211905,1751061047874,-460.0,0.00020273,2]
[368211906,1751061047887,-487.52,0.00020273,2]
[368211907,1751061047897,-460.0,0.00020273,2]
[368211908,1751061047906,-460.0,0.00020273,2]
[368211909,1751061047915,-620.19,0.00020273,2]
[368211910,1751061047925,-460.0,0.00020273,2]
[368211911,1751061047934,-635.28,0.00020273,2]
[368211912,1751061047943,-565.41,0.00020273,2]
[368211913,1751061047955,-460.0,0.00020273,2]
[368211914,1751061047964,-2824.59,0.00020273,2]
[368211915,1751061047974,-597.55,0.00020273,2]
[368211916,1751061047983,-798.49,0.00020273,2]
[368211917,1751061047993,-3357.7,0.00020273,2]
[368211918,1751061048002,-761.7,0.00020273,2]
[368211919,1751061048012,-460.0,0.00020273,2]
[368211920,1751061048022,-487.85,0.00020273,2]
[368211921,1751061048031,-460.0,0.00020273,2]
[368211922,1751061048041,-986.93,0.00020273,2]
[368211923,1751061048050,-679.08,0.00020273,2]
[368211924,1751061048059,-1181.38,0.00020273,2]
[368211925,1751061048069,-460.0,0.00020273,2]
[368211926,1751061048078,-2968.79,0.00020273,2]
[368211927,1751061048088,-460.0,0.00020273,2]
[368211928,1751061048097,-544.9,0.00020273,2]
[368211929,1751061048106,-497.76,0.00020273,2]
[368211930,1751061048116,-3495.66,0.00020273,2]
[368211931,1751061048126,-460.0,0.00020273,2]
[368211932,1751061048136,-2798.55,0.00020273,2]
[368211933,1751061048145,-629.97,0.00020273,2]
[368211934,1751061048155,-460.0,0.00020273,2]
[368211935,1751061048164,-559.89,0.00020273,2]
[368211936,1751061048174,-460.0,0.00020273,2]
[368211937,1751061048183,-624.94,0.00020273,2]
[368211938,1751061048193,-1873.85,0.00020273,2]
[368211939,1751061048203,-1420.77,0.00020273,2]
[368211940,1751061048212,-1920.28,0.00020273,2]
[368211941,1751061048222,-460.0,0.00020273,2]
[368211942,1751061048231,-2056.81,0.00020273,2]
[368211943,1751061048241,-460.0,0.00020273,2]
[368211944,1751061048250,-585.66,0.00020273,2]
[368211945,1751061048259,-840.29,0.00020273,2]
[368211946,1751061048269,-5277.68,0.00020273,2]
[368211947,1751061048278,-4923.21,0.00020273,2]
[368211948,1751061048288,-739.24,0.00020273,2]
[368211949,1751061048297,-727.92,0.00020273,2]
[368211950,1751061048307,-460.0,0.00020273,2]
[368211951,1751061048316,-460.0,0.00020273,2]
[368211952,1751061048325,-460.0,0.00020273,2]
[368211953,1751061048335,-1514.85,0.00020273,2]
[368211954,1751061048344,-1211.92,0.00020273,2]
[368211955,1751061048354,-674.28,0.00020273,2]
[368211956,1751061048363,-460.0,0.00020273,2]
[368211957,1751061048372,-669.06,0.00020273,2]
[368211958,1751061048381,-460.0,0.00020273,2]
[368211959,1751061048390,-460.0,0.00020273,2]
[368211960,1751061048399,-1456.98,0.00020273,2]
[368211961,1751061048408,-467.82722845,0.00020273,2]
[368211962,1751061048419,-1384.05,0.00020273,2]
[368211963,1751061048428,-707.41,0.00020273,2]
[368211964,1751061048437,-399.96,0.00020273,2]
[368211965,1751061048446,-460.0,0.00020273,2]
[368211966,1751061048455,-590.69,0.00020273,2]
[368211967,1751061048464,-460.0,0.00020273,2]
[368211968,1751061048473,-542.12,0.00020273,2]
[368211969,1751061048483,-1928.85,0.00020273,2]
[368211970,1751061048492,-2564.36,0.00020273,2]
[368211971,1751061048502,-940.13,0.00020273,2]
[368211972,1751061048512,-558.51,0.00020273,2]
[368211973,1751061048521,-692.09,0.00020273,2]
[368211974,1751061048531,-703.36,0.00020273,2]
[368211975,1751061048540,-460.0,0.00020273,2]
[368211976,1751061048549,-989.89,0.00020273,2]
[368211977,1751061048559,-460.0,0.00020273,2]
[368211978,1751061048568,-460.0,0.00020273,2]
[368211979,1751061048577,-4047.67,0.00020273,2]
[368211980,1751061048586,-460.0,0.00020273,2]
[368211981,1751061048595,-460.0,0.00020273,2]
[368211982,1751061048605,-460.0,0.00020273,2]
[368211983,1751061048614,-1027.21,0.00020273,2]
[368211984,1751061048624,-735.72,0.00020273,2]
[368211985,1751061048633,-151.0,0.00020273,2]
[368211986,1751061048642,-460.0,0.00020273,2]
[368211987,1751061048652,-460.0,0.00020273,2]
[368211988,1751061048662,-460.0,0.00020273,2]
[368211989,1751061048800,-4800.46,0.00020273,2]
[368211990,1751061048810,-695.51,0.00020273,2]
[368211991,1751061048820,-460.0,0.00020273,2]
[368211992,1751061048830,-2134.26,0.00020273,2]
[368211993,1751061048839,-159.2394861,0.00020301,2]
[368211994,1751061048849,-153.0,0.00020301,2]
[368211995,1751061048859,-153.0,0.00020301,2]
[368211996,1751061048869,-153.0,0.00020301,2]
[368211997,1751061048878,-153.0,0.00020301,2]
[368211998,1751061048887,-153.0,0.00020301,2]
[368211999,1751061048902,-833.87781239,0.00020311,2]
[368212000,1751061048912,-227.0,0.00020312,2]
[368212001,1751061048922,-6253.67473741,0.00020383,3]
[368212002,1751061048931,-500.0,0.00020545,2]
[368212003,1751061048941,-500.0,0.00020545,2]
[368212004,1751061048951,-500.0,0.00020545,2]
[368212005,1751061048960,-500.0,0.00020545,2]
[368212006,1751061048970,-500.0,0.00020545,2]
[368212007,1751061048979,-312.8247973,0.00020545,2]
[368212008,1751061048991,-500.0,0.00020545,2]
[368212009,1751061049000,-291.32670292,0.00020545,2]
[368212010,1751061049010,-511.13860579,0.00020545,2]
[368212011,1751061049020,-500.0,0.00020545,2]
[368212012,1751061049029,-500.0,0.00020545,2]
[368212013,1751061049038,-500.0,0.00020545,2]
[368212014,1751061049048,-500.0,0.00020545,2]
[368212015,1751061049057,-500.0,0.00020545,2]
[368212016,1751061049068,-500.0,0.00020545,2]
[368212017,1751061049078,-500.0,0.00020545,2]
[368212018,1751061049087,-500.0,0.00020545,2]
[368212019,1751061049096,-500.0,0.00020545,2]
[368212020,1751061049106,-500.0,0.00020545,2]
[368212021,1751061049115,-500.0,0.00020545,2]
[368212022,1751061049125,-500.0,0.00020545,2]
[368212023,1751061049134,-154.27289891,0.00020545,2]
[368212024,1751061049144,-500.0,0.00020545,2]
[368212025,1751061049153,-500.0,0.00020545,2]
[368212026,1751061049162,-500.0,0.00020545,2]
[368212027,1751061049173,-500.0,0.00020545,2]
[368212028,1751061049183,-500.0,0.00020545,2]
[368212029,1751061049193,-208.87193447,0.00020545,2]
[368212030,1751061049203,-500.0,0.00020545,2]
[368212031,1751061049212,-500.0,0.00020545,2]
[368212032,1751061049221,-500.0,0.00020545,2]
[368212033,1751061049231,-500.0,0.00020545,2]
[368212034,1751061049241,-371.21744611,0.00020545,2]
[368212035,1751061049250,-500.0,0.00020545,2]
[368212036,1751061049260,-500.0,0.00020545,2]
[368212037,1751061049270,-500.0,0.00020545,2]
[368212038,1751061049279,-500.0,0.00020545,2]
[368212039,1751061049287,-500.0,0.00020545,2]
[368212040,1751061049296,-500.0,0.00020545,2]
[368212041,1751061049305,-500.0,0.00020545,2]
[368212042,1751061049314,-500.0,0.00020545,2]
[368212043,1751061049324,-500.0,0.00020545,2]
[368212044,1751061049333,-268.44287869,0.00020545,2]
[368212045,1751061049342,-500.0,0.00020545,2]
[368212046,1751061049351,-500.0,0.00020545,2]
[368212047,1751061049361,-500.0,0.00020545,2]
[368212048,1751061049370,-500.0,0.00020545,2]
[368212049,1751061049379,-500.0,0.00020545,2]
[368212050,1751061049388,-335.85415449,0.00020545,2]
[368212051,1751061049397,-257.92986831,0.00020545,2]
[368212052,1751061049407,-500.0,0.00020545,2]